Cogmind - Beta 12 @@@ ROGUE MODE // 2023.05.27 @ 01:39:03 Player: snowphil Result: Destroyed by D-53 Grenadier with Mini Grenade Launcher Performance ------------- Evolutions (0) 0 Regions Visited (2) 400 Robots Destroyed (17) 85 Value Destroyed (523) 523 Prototype IDs (1) 20 Alien Tech Used (0) 0 Bonus (0) 0 TOTAL SCORE: 1028 Bonus ------- None Cogmind --------- Core Integrity 0/250 Matter 293/300 Energy 250/250 System Corruption 0% Temperature Cool (40) Movement Walking (190) Ox1 Location -10/Mines Parts ------- > --- POWER (1) -------- Ion Engine > --- PROPULSION (2) --- Aluminum Leg Aluminum Leg > --- UTILITY (2) ------ Small Storage Unit Experimental Sensor Array > --- WEAPON (2) ------- Particle Gun Bore Cannon > --- INVENTORY (8) ---- Ion Engine Light Ion Engine Aluminum Leg Aluminum Leg Light Armor Plating Rocket Launcher Mining Laser Heavy Hammer Peak State ------------ > --- POWER ------------ Ion Engine > --- PROPULSION ------- Aluminum Leg Aluminum Leg > --- UTILITY ---------- Small Storage Unit Experimental Sensor Array > --- WEAPON ----------- Particle Gun Bore Cannon > --- INVENTORY -------- Ion Engine Light Ion Engine Aluminum Leg Aluminum Leg Light Armor Plating Rocket Launcher Mining Laser Heavy Hammer [Rating: 21] Favorites ----------- Power Light Nuclear Core Engine Light Ion Engine Power Core Light Nuclear Core Propulsion Aluminum Leg Leg Aluminum Leg Utility Small Storage Unit Device Experimental Sensor Array Storage Small Storage Unit Protection Light Armor Plating Weapon Assault Rifle Energy Gun Particle Gun Ballistic Gun Assault Rifle Ballistic Cannon Bore Cannon Impact Weapon Heavy Hammer Build | -11 -10 -10 ------- Run | Jun Mat Min Slots Evolved . | . . . Power . | . . . Propulsion . | . . . Utility . | . . . Weapon . | . . . Parts Attached 25 | 6 10 9 Power 4 | 1 2 1 Engine 3 | 1 1 1 Core 1 | . 1 . Reactor . | . . . Propulsion 8 | 2 3 3 Treads . | . . . Leg 8 | 2 3 3 Wheel . | . . . Hover . | . . . Flight . | . . . Utility 5 | 1 1 3 Device 1 | . . 1 Storage 1 | 1 . . Processor . | . . . Hackware . | . . . Protection 3 | . 1 2 Artifact . | . . . Weapon 8 | 2 4 2 Energy Gun 2 | . 2 . Energy Cannon . | . . . Ballistic Gun 4 | 2 1 1 Ballistic Cannon 1 | . . 1 Launcher . | . . . Special Weapon . | . . . Impact Weapon 1 | . 1 . Slashing Weapon . | . . . Piercing Weapon . | . . . Special Melee Weapon . | . . . Unidentified Prototypes 1 | . . 1 Parts Lost 4 | . . 4 Power 1 | . . 1 Propulsion . | . . . Utility 2 | . . 2 Weapon 1 | . . 1 Highest Loss Streak 1 | . . 1 To Critical Strikes . | . . . Average Slot Usage (%) 98 | . 98 98 Engine 7 | . 7 8 Core 5 | . 6 5 Leg 28 | . 28 28 Device 1 | . . 3 Storage 14 | . 14 14 Protection 11 | . 12 9 Energy Gun 9 | . 6 14 Ballistic Gun 17 | . 20 12 Naked Turns . | . . . Heaviest Build 23 | 12 18 23 Greatest Support 20 | 20 20 20 Greatest Overweight (x) 1 | 1 . 1 Average Overweight (x) . | . . . Largest Inventory Capacity 8 | 8 8 8 Average Capacity 7 | 6 8 8 Most Carried 8 | 7 8 8 Average Carried 7 | 2 7 7 Final Capacity 8 | 8 8 8 Final Carried 8 | 2 8 8 Class Distribution -------------------- 58% | Mutant 41% | Scavenger-Mutant Dominant Class ---------------- Mutant | -10/Materials Mutant | -10/Mines Resources | -11 -10 -10 ----------- Run | Jun Mat Min Matter Collected 615 | 211 266 138 Remotely . | . . . Salvage Created 653 | . 419 234 Parts 34 | . 22 12 Haulers Intercepted . | . . . Recyclers Shooed 1 | . . 1 Parts Field Recycled . | . . . Retrieved Matter . | . . . Parts Self-Destructed . | . . . Prevented . | . . . Kills | -11 -10 -10 ------- Run | Jun Mat Min Combat Hostiles Destroyed 15 | . 8 7 Guns 15 | . 8 7 Classes Destroyed 3 | . 2 1 Builder 2 | . 2 . Swarmer 3 | . . 3 Grunt 12 | . 8 4 Best Kill Streak 5 | . 5 3 Combat Bots Only 4 | . 4 3 Max Kills in Single Turn 2 | . 2 2 Gunslinging 1 | . . 1 Exploded . | . . . Melee . | . . . Uniques/NPCs Destroyed . | . . . Combat | -11 -10 -10 -------- Run | Jun Mat Min Damage Taken 1109 | . 455 654 Core 254 | . 99 155 Absorbed by Shields . | . . . Core Remaining (%) 100 | 100 . . Volleys Fired 53 | . 31 22 Largest 2 | . 2 2 Hottest 122 | . 85 122 Shots Fired 105 | . 62 43 Gun 104 | . 62 42 Cannon 1 | . . 1 Launcher . | . . . Special . | . . . Kinetic 61 | . 39 22 Thermal 44 | . 23 21 Explosive . | . . . Electromagnetic . | . . . Robot Hit Streak 15 | . 9 15 Robot Miss Streak 3 | . 2 3 Penetration Max . | . . . Secondary Targets 3 | . . 3 Max Gunslinging Chain 1 | . . 1 Shots Hit Robots 69 | . 38 31 Core Hits 32 | . 20 12 Critical Kills . | . . . Critical Parts Destroyed . | . . . Critical Strikes 1 | . 1 . Burn 1 | . 1 . Melee Attacks 1 | . 1 . Impact 1 | . 1 . Slashing . | . . . Piercing . | . . . Sneak Attacks . | . . . Combat Hostiles . | . . . Follow-up Attacks . | . . . Damage Inflicted 948 | . 531 417 Guns 948 | . 531 417 Cannons . | . . . Explosions . | . . . Melee . | . . . Ramming . | . . . Kinetic 521 | . 325 196 Thermal 427 | . 206 221 Explosive . | . . . Electromagnetic . | . . . Impact . | . . . Slashing . | . . . Piercing . | . . . Highest Corruption . | . . . Average Corruption . | . . . Corruption Purged . | . . . Corruption Blocked . | . . . Overload Shots . | . . . Overflow Damage . | . . . Projectiles . | . . . Explosions . | . . . Melee . | . . . Knockbacks . | . . . Impact . | . . . Kinetic . | . . . Secondary . | . . . Self-Inflicted Damage . | . . . Shots . | . . . Rammed . | . . . Targets Rammed . | . . . Kicked . | . . . Crushed . | . . . Highest Temperature 393 | . 393 230 Average Temperature 155 | . 205 91 Received Heat Transfer 486 | . 273 213 Effects 4 | . 4 . Shutdowns 2 | . 2 . Energy Bleed 2 | . 2 . Siege Activations . | . . . Robots Corrupted . | . . . Combat Hostiles . | . . . Parts Fried . | . . . Impact Corruptions . | . . . Robots Melted . | . . . Combat Hostiles . | . . . Parts Melted 2 | . 1 1 Heat Transferred 1184 | . 629 555 Parts Sabotaged . | . . . Parts Stolen . | . . . Parts Stripped . | . . . Power Chain Reactions . | . . . Missiles Intercepted . | . . . Alert | -11 -10 -10 ------- Run | Jun Mat Min Peak Influence 258 | . 258 237 Initial 47 | . . 47 Average 98 | . 94 112 Maximum Alert Level 1 | . 1 1 Low Security (%) 87 | 100 83 92 Level 1 12 | . 16 7 Level 2 . | . . . Level 3 . | . . . Level 4 . | . . . Level 5 . | . . . High Security . | . . . Max Security . | . . . Squads Dispatched 2 | . 2 . Investigation 1 | . 1 . Extermination . | . . . Reinforcement 1 | . 1 . Assault . | . . . Garrison . | . . . Intercept . | . . . Searches Triggered . | . . . Construction Impeded . | . . . Haulers Reinforced . | . . . Active Scanning Responses . | . . . Cargo Convoy Interrupts . | . . . Stealth | -11 -10 -10 --------- Run | Jun Mat Min Distress Signals 2 | . 2 . Communications Jammed . | . . . Distress Signals . | . . . Times Spotted 28 | . 17 11 Peak Tracking Total 6 | . 6 3 Tactical Retreats 1 | . . 1 Traps | -11 -10 -10 ------- Run | Jun Mat Min Traps Triggered . | . . . Indirectly . | . . . Trap Hack Attempts . | . . . Triggered . | . . . Disarmed . | . . . Reprogrammed . | . . . Reused . | . . . Traps Extracted . | . . . Installed 2 | . . 2 Triggered . | . . . Machines | -11 -10 -10 ---------- Run | Jun Mat Min Machines Disabled 1 | . . 1 Max in Single Turn 1 | . . 1 Machines Repaired . | . . . Machines Sabotaged . | . . . Overloaded Fab Kills . | . . . Hacking | -11 -10 -10 --------- Run | Jun Mat Min Machines Accessed 10 | . 10 . Terminals 8 | . 8 . Fabricators . | . . . Repair Stations . | . . . Recycling Units 2 | . 2 . Scanalyzers . | . . . Garrison Access . | . . . Total Hacks 27 | . 27 . Successful 17 | . 17 . Failed 10 | . 10 . Catastrophic 1 | . 1 . Database Lockouts . | . . . Manual 18 | . 18 . Terminals 22 | . 22 . Fabricators . | . . . Repair Stations . | . . . Recycling Units 5 | . 5 . Scanalyzers . | . . . Garrison Access . | . . . Terminal Hacks 8 | . 8 . Robot Analysis 1 | . 1 . Branch Access Points 1 | . 1 . Alert Level 2 | . 2 . Locate Traps 4 | . 4 . Fabricator Hacks . | . . . Repair Station Hacks . | . . . Recycling Unit Hacks 1 | . 1 . Retrieve Components 1 | . 1 . Scanalyzer . | . . . Garrison Access Hacks . | . . . Unauthorized Hacks 8 | . 8 . Terminals 6 | . 6 . Botnet 6 | . 6 . Fabricators . | . . . Repair Stations . | . . . Recycling Units 2 | . 2 . Reject 2 | . 2 . Scanalyzers . | . . . Garrison Access . | . . . Data Cores Recovered . | . . . Used . | . . . Hacking Detections 8 | . 8 . Full Trace Events 1 | . 1 . Feedback Events . | . . . Feedback Blocked . | . . . Robot Schematics Acquired . | . . . Robots Built . | . . . Authchips . | . . . Time . | . . . Total Robot Build Rating . | . . . Part Schematics Acquired . | . . . Parts Built . | . . . Authchips . | . . . Time . | . . . Total Part Build Rating . | . . . Parts Repaired . | . . . Time . | . . . Parts Recycled . | . . . Recycled Matter . | . . . Retrieved Matter . | . . . Retrieved Components . | . . . Parts Scanalyzed . | . . . Part Schematics Acquired . | . . . Parts Damaged . | . . . Bothacking | -11 -10 -10 ------------ Run | Jun Mat Min Used RIF Installer . | . . . Robots Hacked . | . . . Non-combat . | . . . Combat . | . . . Robot Hacks Applied . | . . . Relay Couplers Released . | . . . Fabnet Peak Effective % . | . . . Robots Rewired . | . . . Allies Hacked . | . . . Hacks Repelled . | . . . Allies | -11 -10 -10 -------- Run | Jun Mat Min Total Allies . | . . . Largest Group . | . . . Highest-Rated Group . | . . . Highest-Rated Ally . | . . . Total Orders . | . . . Ally Attacks . | . . . Total Damage . | . . . Kills . | . . . Allies Corrupted . | . . . Allies Melted . | . . . Intel | -11 -10 -10 ------- Run | Jun Mat Min Robot Analysis Total 1 | . 1 . Derelict Logs Recovered 1 | . . 1 Drone Launches . | . . . Drone Recoveries . | . . . Exploration | -11 -10 -10 ------------- Run | Jun Mat Min Turns Passed 1756 | 52 1048 656 Spaces Moved 1200 | 46 722 432 Core 26 | 26 . . Treads . | . . . Legs 1174 | 20 722 432 Wheels . | . . . Hover . | . . . Flight . | . . . Fastest Speed 50 | 50 120 120 Average Speed 120 | 82 120 125 Slowest Speed 190 | 120 120 190 Overloaded Moves . | . . . Propulsion Burnouts . | . . . Robots Hopped . | . . . Cave-ins Triggered . | . . . Exploration Rate (%) 54 | 4 96 62 Regions Visited 2 Branch Regions 1 Pre-discovered Areas 1 | . . 1 Known Exits Taken 1 | . 1 . Unknown Exits Taken 1 | 1 . . Scrap Searched 1 | . . 1 Spaces Dug 1 | . 1 . Terrain Destroyed 1 | . 1 . Melee 1 | . 1 . Projectile . | . . . AOE . | . . . Terrain Rammed . | . . . Walls Destroyed . | . . . Machines Disabled . | . . . Actions | -11 -10 -10 --------- Run | Jun Mat Min Total 1407 | 60 843 504 Wait 86 | . 58 28 Move 1198 | 45 721 432 Hop . | . . . Pick Up 26 | 8 12 6 Fast Attach 2 | 1 . 1 Attach 10 | 5 1 4 Detach . | . . . Swap 13 | . 9 4 Drop 16 | 1 10 5 Fire 53 | . 31 22 Melee 1 | . 1 . Ram . | . . . Kick . | . . . Crush . | . . . Escape Stasis . | . . . Rewire . | . . . Trap 2 | . . 2 Miscellaneous . | . . . Route ------- -11/Junkyard -10/Materials (discovered 4 exits: [*Mat x3] / *Min) -10/Mines History --------- Turn | Location | Event 4 | -11/Junkyard | Discovered new exit (range 15) 53 | -11/Junkyard | Entered Materials 108 | -10/Materials | Discovered new exit (range 10) 172 | -10/Materials | Discovered new exit (range 3) 280 | -10/Materials | Discovered new exit (range 13) 304 | -10/Materials | Build established: Mutant 717 | -10/Materials | Discovered new exit (range 12) 797 | -10/Materials | Identified exit to Mines 944 | -10/Materials | Build established: Scavenger-Mutant 1101 | -10/Materials | Entered Mines 1189 | -10/Mines | Found a hidden stash of uninstalled traps 1192 | -10/Mines | Assembled infested the area 1213 | -10/Mines | Core integrity fell below 50% 1576 | -10/Mines | Found a damaged Exp. Sensor Array with a note attached 1579 | -10/Mines | Found Prototype Device 1580 | -10/Mines | Identified Exp. Sensor Array 1620 | -10/Mines | Received a Rocket Launcher from a helpful Derelict 1662 | -10/Mines | Build established: Mutant 1684 | -10/Mines | A weapon hastily lodged in a ceiling crevice suddenly fell to the ground 1740 | -10/Mines | Learned location of Zion (-7) 1757 | -10/Mines | Destroyed by D-53 Grenadier with Mini Grenade Launcher Last Messages --------------- 01684_ T-07 Excavator is excavating. 01684_ A Bore Cannon has been hastily shoved under some rubble with a note attached: "Boring, it is not. Although I admit enemies do get bored, for sure." 01687_ Dropped Assault Rifle. 01687_ Acquired Bore Cannon. 01688_ T-07 Excavator is excavating. 01694_ U-05 Engineer lays Concrete. 01697_ T-07 Excavator is excavating. 01697_ U-05 Engineer lays Concrete. 01700_ U-05 Engineer builds a Wall. 01701_ T-07 Excavator is excavating. 01701_ U-05 Engineer lays Concrete. 01705_ T-07 Excavator is excavating. 01708_ U-05 Engineer lays Concrete. 01709_ U-05 Engineer builds a Wall. 01709_ T-07 Excavator is excavating. 01740_ Acquired derelict log, extracted data. World map updated: -7/Zion. 01744_ Acquired 10 matter. 01755_ HV Slug penetrates Wall. Map ----- +----------------------------------------------------+ | ?????????## ## #?????????????????? | | ???????### ??????????????? | | #####?## ?????????????? | | # ### ##### ?????????????? | | %##??????????????????? | | #### ##???????????????????? | | # #### ##??## #????????????????????? | | ## ### #????## #???????????????????? | | ?## ## ##??????#### #??????????????????? | | ??# ### ##??????????? ?????????????????? | | ??## ##?####???????????? ## ?????????????????? | | ???## #??????????????????% #? ??????????????????? | | #???# #?????????????????? #?????????????????????? | | ##??# #?????###?????????? ???????????????????????? | | #### ## #????????##????????????????????????? | | ?? ?? ???????????????????????? | | ##### #??????? % ???????????????????????? | | ######?????#???????# #???????????????????????? | | #?????????????#d#???????????????????????? | | # ###### #?????????????# ???????????????????????? | | # #????# #????????????##d####????????????????????? | | #????# #???????????## # ##?##????????????????? | | #????# ##???######?# # ?????????????????? | | ######## ##### ### #??????????????????? | | ## ## ##??????????????????? | | # ## @ ##?????????????????? | | = [ ### ### #?????????????????? | | ## ###?## ##?# #?????????????????? | | ?#### ##????## ##??# # ?????????????? | | ???# #?????# ##??### ##### ??????????? | | ???# ##?????# ###### #????? ##### #?????????? | | ???#####??????# #??????##???????????????? | | ??????????????# ####### #???????????????????????? | | ??????????????# #?????# ??????????????????????? | | ??????????????# #?????#####?????????????????????? | | ??????????????####???????????????????????????????? | | ?????????????????????????????????????????????????? | | ?????????????????????????????????????????????????? | | ?????????????????????????????????????????????????? | | ?????????????????????????????????????????????????? | | ?????????????????????????????????????????????????? | | ?????????????????????????????????????????????????? | | ?????????????????????????????????????????????????? | | | | | | | | | | | | | | | +----------------------------------------------------+ Best States ------------- Heat Dissipation 25 Energy Generation 14 Energy Capacity 250 Matter Stores 300 Matter Capacity 300 Sight Range 16 Robot Scan Range 20 Terrain Scan Density 10 Armor Coverage 150 Evasion (%) 55 Item Schematics ----------------- None Robot Schematics ------------------ None Fabricated ------------ Nothing Alien Tech Used ----------------- None Achievements -------------- None Challenges ------------ None Game ------ Seed LatentAccelerationWell Manual? 0 Play Time 00:26:32 Cumulative 112.8 hours Start 2023.05.27 @ 00:11:04 End 2023.05.27 @ 01:39:03 Sessions 3 Manual Loads 0 Difficulty Rogue Special Mode None Game No. 15 Rogue 13 Adventurer 0 Explorer 2 Win Type - Total 3 Types 0/0/0/3/0/0/0/0/0 Lore% 31 Gallery% 36 Achievement% 45 Wizard Run 0 Options --------- ASCII 0 Keyboard 0 Movement Mouse Keybinds 0 Fullscreen 1 Font 20/SmallcapsGlow Map View 98x59 Tactical HUD 1 Map Filters NONE Filters NONE Steam 1 RUN: d9123b29-0b2e-440b-b1ee-e8848246d49d